[Event "Early-Titled-Tuesday-Blitz-May-28-2024"]
[Site "Chess.com"]
[Date "2024.05.28"]
[Round "1"]
[White "VirtualCoach"]
[Black "MalyDominator"]
[Result "0-1"]
[WhiteElo "2187"]
[BlackElo "2586"]
[TimeControl "180+1"]
[EndTime "8:08:01 PDT"]
[Termination "MalyDominator won on time"]

1. e4 {[%clk 0:03:00.1]} 1... c6 {[%clk 0:02:57.8]} 2. d4 {[%clk 0:02:58]} 2...
d5 {[%clk 0:02:58.7]} 3. e5 {[%clk 0:02:57.8]} 3... c5 {[%clk 0:02:57.7]} 4. Nf3
{[%clk 0:02:57.8]} 4... cxd4 {[%clk 0:02:57.4]} 5. Nxd4 {[%clk 0:02:57.9]} 5...
Nc6 {[%clk 0:02:56.6]} 6. Nxc6 {[%clk 0:02:57.9]} 6... bxc6 {[%clk 0:02:56.7]}
7. c3 {[%clk 0:02:52.1]} 7... e6 {[%clk 0:02:56.8]} 8. Be2 {[%clk 0:02:47.4]}
8... Ne7 {[%clk 0:02:56.7]} 9. Bf4 {[%clk 0:02:36.9]} 9... Ng6 {[%clk
0:02:56.1]} 10. Bg3 {[%clk 0:02:37.5]} 10... Bc5 {[%clk 0:02:53.2]} 11. O-O
{[%clk 0:02:36.4]} 11... O-O {[%clk 0:02:52.5]} 12. Nd2 {[%clk 0:02:36.3]} 12...
a5 {[%clk 0:02:51.3]} 13. Nf3 {[%clk 0:02:35.6]} 13... Rb8 {[%clk 0:02:49.1]}
14. Qc2 {[%clk 0:02:33]} 14... Qb6 {[%clk 0:02:48.4]} 15. b3 {[%clk 0:02:31.2]}
15... Ba6 {[%clk 0:02:46.5]} 16. Rab1 {[%clk 0:02:24.5]} 16... Bxe2 {[%clk
0:02:44.6]} 17. Qxe2 {[%clk 0:02:25]} 17... Qb5 {[%clk 0:02:45.1]} 18. Qc2
{[%clk 0:02:18.5]} 18... Rfc8 {[%clk 0:02:37.6]} 19. b4 {[%clk 0:02:12.9]} 19...
Be7 {[%clk 0:02:28.4]} 20. a4 {[%clk 0:02:08.6]} 20... Qa6 {[%clk 0:02:27.5]}
21. bxa5 {[%clk 0:01:45.3]} 21... Qxa5 {[%clk 0:02:28.4]} 22. Nd4 {[%clk
0:01:45]} 22... Rxb1 {[%clk 0:02:19.7]} 23. Rxb1 {[%clk 0:01:43.4]} 23... c5
{[%clk 0:02:19.5]} 24. Nb5 {[%clk 0:01:42.3]} 24... c4 {[%clk 0:02:16.9]} 25. h3
{[%clk 0:01:38.1]} 25... Ra8 {[%clk 0:02:15.5]} 26. Ra1 {[%clk 0:01:26.1]} 26...
Rb8 {[%clk 0:02:12]} 27. Nd4 {[%clk 0:01:22.9]} 27... Rb6 {[%clk 0:02:04.8]} 28.
Kh2 {[%clk 0:01:12.8]} 28... h5 {[%clk 0:02:03.3]} 29. f3 {[%clk 0:01:11]} 29...
h4 {[%clk 0:02:03.4]} 30. Bf2 {[%clk 0:01:09.3]} 30... Nxe5 {[%clk 0:01:59.8]}
31. Nf5 {[%clk 0:00:56.7]} 31... exf5 {[%clk 0:01:47.2]} 32. Bxb6 {[%clk
0:00:55.8]} 32... Qxb6 {[%clk 0:01:48.1]} 33. Qxf5 {[%clk 0:00:53.5]} 33... Bd6
{[%clk 0:01:24.8]} 34. Kh1 {[%clk 0:00:48.9]} 34... g6 {[%clk 0:01:10.4]} 35.
Qc8+ {[%clk 0:00:47.1]} 35... Kg7 {[%clk 0:01:10.6]} 36. a5 {[%clk 0:00:42.1]}
36... Qb2 {[%clk 0:01:10.4]} 37. Rf1 {[%clk 0:00:31.8]} 37... Nd3 {[%clk
0:01:06.9]} 38. Qd7 {[%clk 0:00:19.3]} 38... Nf2+ {[%clk 0:00:51.3]} 39. Kg1
{[%clk 0:00:18.9]} 39... Nxh3+ {[%clk 0:00:51]} 40. Kh1 {[%clk 0:00:18.5]} 40...
Qe2 {[%clk 0:00:48.5]} 41. Rb1 {[%clk 0:00:15.7]} 41... Nf2+ {[%clk 0:00:42.5]}
42. Kg1 {[%clk 0:00:14.7]} 42... Bc5 {[%clk 0:00:30.4]} 43. Qxd5 {[%clk
0:00:09.2]} 43... Nd3+ {[%clk 0:00:14.8]} 44. Kh1 {[%clk 0:00:07.8]} 44... Nf4
{[%clk 0:00:12.3]} 45. Qg5 {[%clk 0:00:05.9]} 45... h3 {[%clk 0:00:07.5]} 46.
Rg1 {[%clk 0:00:01.1]} 46... Bxg1 {[%clk 0:00:05.3]} 0-1

[Event "Early-Titled-Tuesday-Blitz-May-28-2024"]
[Site "Chess.com"]
[Date "2024.05.28"]
[Round "1"]
[White "RianKapriaga"]
[Black "Let_it_be_1"]
[Result "0-1"]
[WhiteElo "2294"]
[BlackElo "2612"]
[TimeControl "180+1"]
[EndTime "8:08:02 PDT"]
[Termination "Let_it_be_1 won on time"]

1. d4 {[%clk 0:02:58.4]} 1... d5 {[%clk 0:02:59.7]} 2. Bf4 {[%clk 0:02:58.1]}
2... e6 {[%clk 0:02:59.9]} 3. e3 {[%clk 0:02:57.5]} 3... Bd6 {[%clk 0:03:00.1]}
4. Bg3 {[%clk 0:02:56.8]} 4... Nf6 {[%clk 0:02:59]} 5. Nf3 {[%clk 0:02:56]} 5...
b6 {[%clk 0:02:58.9]} 6. Nbd2 {[%clk 0:02:54.4]} 6... Bb7 {[%clk 0:02:58.5]} 7.
Bd3 {[%clk 0:02:53.5]} 7... c5 {[%clk 0:02:58.4]} 8. c3 {[%clk 0:02:53.1]} 8...
Nc6 {[%clk 0:02:58.1]} 9. Qe2 {[%clk 0:02:48.8]} 9... O-O {[%clk 0:02:53.8]} 10.
Rd1 {[%clk 0:02:47.1]} 10... Qc7 {[%clk 0:02:44.9]} 11. e4 {[%clk 0:02:33.5]}
11... dxe4 {[%clk 0:02:20.4]} 12. Nxe4 {[%clk 0:02:32.2]} 12... Nxe4 {[%clk
0:02:20.6]} 13. Qxe4 {[%clk 0:02:30]} 13... g6 {[%clk 0:02:19.2]} 14. Qh4 {[%clk
0:02:14.6]} 14... cxd4 {[%clk 0:01:58.9]} 15. cxd4 {[%clk 0:02:07.1]} 15... Rad8
{[%clk 0:01:41.9]} 16. O-O {[%clk 0:02:03.3]} 16... Bxg3 {[%clk 0:01:38.8]} 17.
hxg3 {[%clk 0:02:03.5]} 17... Kg7 {[%clk 0:01:23.5]} 18. Rfe1 {[%clk 0:01:53.5]}
18... Rd7 {[%clk 0:01:08.5]} 19. Rxe6 {[%clk 0:01:35.6]} 19... Qd8 {[%clk
0:00:45.3]} 20. Re4 {[%clk 0:00:43.9]} 20... Qxh4 {[%clk 0:00:32.7]} 21. gxh4
{[%clk 0:00:44.2]} 21... Rfd8 {[%clk 0:00:30]} 22. Bb5 {[%clk 0:00:43.6]} 22...
Rd6 {[%clk 0:00:18.1]} 23. Ng5 {[%clk 0:00:27.1]} 23... h6 {[%clk 0:00:16.2]}
24. Nf3 {[%clk 0:00:26.8]} 24... a6 {[%clk 0:00:14.6]} 25. Bc4 {[%clk
0:00:24.4]} 25... Na5 {[%clk 0:00:13.9]} 26. Bd3 {[%clk 0:00:21.6]} 26... Bxe4
{[%clk 0:00:13.5]} 27. Bxe4 {[%clk 0:00:22.5]} 27... Nc6 {[%clk 0:00:09.8]} 28.
d5 {[%clk 0:00:18.2]} 28... Ne7 {[%clk 0:00:09.9]} 29. Ne5 {[%clk 0:00:15.8]}
29... Nxd5 {[%clk 0:00:08.9]} 30. Nc4 {[%clk 0:00:14.4]} 30... R6d7 {[%clk
0:00:07.2]} 31. Ne5 {[%clk 0:00:12.9]} 31... Rd6 {[%clk 0:00:07.1]} 32. Nc4
{[%clk 0:00:12.9]} 32... Rc6 {[%clk 0:00:06.4]} 33. Bxd5 {[%clk 0:00:10.4]}
33... Rxc4 {[%clk 0:00:05.9]} 34. Bxc4 {[%clk 0:00:04.1]} 34... Rxd1+ {[%clk
0:00:05.5]} 35. Kh2 {[%clk 0:00:04.8]} 35... Rd2 {[%clk 0:00:06.2]} 36. Bxa6
{[%clk 0:00:03.7]} 36... Rxf2 {[%clk 0:00:05.7]} 37. Bd3 {[%clk 0:00:04.6]}
37... Rxb2 {[%clk 0:00:05.6]} 38. Bc4 {[%clk 0:00:05.5]} 38... Rb4 {[%clk
0:00:05.5]} 39. Bb3 {[%clk 0:00:04]} 39... Rxh4+ {[%clk 0:00:04.8]} 40. Kg3
{[%clk 0:00:04.9]} 40... Rd4 {[%clk 0:00:05.6]} 41. Kf3 {[%clk 0:00:05.6]} 41...
Rd2 {[%clk 0:00:06.5]} 42. Ke3 {[%clk 0:00:06.5]} 42... Rxg2 {[%clk 0:00:06.5]}
43. Kf3 {[%clk 0:00:07.1]} 43... Rg5 {[%clk 0:00:06.6]} 44. Kf4 {[%clk
0:00:06.8]} 44... Kf6 {[%clk 0:00:07.5]} 45. Bc4 {[%clk 0:00:04.2]} 45... Rf5+
{[%clk 0:00:08.4]} 46. Kg4 {[%clk 0:00:03.9]} 46... h5+ {[%clk 0:00:08.3]} 47.
Kh4 {[%clk 0:00:03.9]} 47... Rf4+ {[%clk 0:00:08.2]} 48. Kg3 {[%clk 0:00:04.2]}
48... Rxc4 {[%clk 0:00:09.1]} 0-1

[Event "Early-Titled-Tuesday-Blitz-May-28-2024"]
[Site "Chess.com"]
[Date "2024.05.28"]
[Round "1"]
[White "tomesao"]
[Black "alexrustemov"]
[Result "0-1"]
[WhiteElo "2472"]
[BlackElo "2832"]
[TimeControl "180+1"]
[EndTime "8:08:04 PDT"]
[Termination "alexrustemov won by checkmate"]

1. Nf3 {[%clk 0:03:00.9]} 1... d5 {[%clk 0:02:59.7]} 2. c4 {[%clk 0:03:00]} 2...
d4 {[%clk 0:02:59]} 3. b4 {[%clk 0:02:59.2]} 3... c5 {[%clk 0:02:59]} 4. Bb2
{[%clk 0:02:58.8]} 4... Nc6 {[%clk 0:02:56.3]} 5. b5 {[%clk 0:02:46.1]} 5... Nb8
{[%clk 0:02:54]} 6. e3 {[%clk 0:02:43]} 6... dxe3 {[%clk 0:02:52.9]} 7. fxe3
{[%clk 0:02:39.9]} 7... Nf6 {[%clk 0:02:53]} 8. Nc3 {[%clk 0:02:34.6]} 8... g6
{[%clk 0:02:53.1]} 9. Be2 {[%clk 0:02:32.1]} 9... Bg7 {[%clk 0:02:53.5]} 10. O-O
{[%clk 0:02:31.9]} 10... O-O {[%clk 0:02:54.1]} 11. d4 {[%clk 0:02:29.5]} 11...
Nbd7 {[%clk 0:02:50.8]} 12. Qd3 {[%clk 0:02:16.2]} 12... b6 {[%clk 0:02:46.6]}
13. d5 {[%clk 0:02:14.2]} 13... Ng4 {[%clk 0:02:43.6]} 14. e4 {[%clk 0:02:07.9]}
14... Nde5 {[%clk 0:02:38.1]} 15. Nxe5 {[%clk 0:02:04.5]} 15... Nxe5 {[%clk
0:02:36.5]} 16. Qc2 {[%clk 0:02:01.7]} 16... Bd7 {[%clk 0:02:34.1]} 17. a4
{[%clk 0:02:00.8]} 17... a5 {[%clk 0:02:32.7]} 18. bxa6 {[%clk 0:01:55.6]} 18...
Rxa6 {[%clk 0:02:32.3]} 19. Nb5 {[%clk 0:01:55.1]} 19... Qb8 {[%clk 0:02:18.8]}
20. h3 {[%clk 0:01:47.6]} 20... h5 {[%clk 0:02:08.2]} 21. Bc3 {[%clk 0:01:46.1]}
21... Bxb5 {[%clk 0:01:59.2]} 22. axb5 {[%clk 0:01:37.5]} 22... Rxa1 {[%clk
0:01:57.4]} 23. Rxa1 {[%clk 0:01:38.4]} 23... Nd7 {[%clk 0:01:53.5]} 24. Bxg7
{[%clk 0:01:24.9]} 24... Kxg7 {[%clk 0:01:54.1]} 25. Qc3+ {[%clk 0:01:24.9]}
25... f6 {[%clk 0:01:47]} 26. Ra3 {[%clk 0:00:52.9]} 26... Qc7 {[%clk
0:01:46.1]} 27. Qa1 {[%clk 0:00:39.5]} 27... Rb8 {[%clk 0:01:45.1]} 28. Ra7
{[%clk 0:00:37.6]} 28... Rb7 {[%clk 0:01:45.4]} 29. Ra8 {[%clk 0:00:33.5]} 29...
Qf4 {[%clk 0:01:39.1]} 30. Qc3 {[%clk 0:00:25.1]} 30... Ne5 {[%clk 0:01:36.4]}
31. Ra3 {[%clk 0:00:22.6]} 31... h4 {[%clk 0:01:33.6]} 32. Ra1 {[%clk
0:00:18.7]} 32... e6 {[%clk 0:01:19.9]} 33. dxe6 {[%clk 0:00:12.7]} 33... Re7
{[%clk 0:01:19.4]} 34. Rf1 {[%clk 0:00:10.6]} 34... Qxe4 {[%clk 0:01:16]} 35.
Bf3 {[%clk 0:00:09.4]} 35... Qd4+ {[%clk 0:01:09.4]} 36. Qxd4 {[%clk 0:00:09.2]}
36... cxd4 {[%clk 0:01:10]} 37. Bd5 {[%clk 0:00:09.5]} 37... f5 {[%clk
0:01:01.5]} 38. c5 {[%clk 0:00:09.5]} 38... bxc5 {[%clk 0:00:56.2]} 39. b6
{[%clk 0:00:09.6]} 39... Re8 {[%clk 0:00:53.9]} 40. b7 {[%clk 0:00:09.9]} 40...
d3 {[%clk 0:00:52.3]} 41. Rc1 {[%clk 0:00:08.5]} 41... Rb8 {[%clk 0:00:43.1]}
42. Kf2 {[%clk 0:00:04.9]} 42... c4 {[%clk 0:00:40.6]} 43. Bxc4 {[%clk
0:00:04.3]} 43... Nxc4 {[%clk 0:00:37.6]} 44. Rxc4 {[%clk 0:00:05.2]} 44... Rxb7
{[%clk 0:00:37.9]} 45. Rd4 {[%clk 0:00:05.2]} 45... Rb2+ {[%clk 0:00:37.7]} 46.
Kf3 {[%clk 0:00:05.2]} 46... d2 {[%clk 0:00:35.2]} 47. Ke2 {[%clk 0:00:04.5]}
47... d1=Q+ {[%clk 0:00:34.4]} 48. Kxd1 {[%clk 0:00:04.8]} 48... Rxg2 {[%clk
0:00:34.8]} 49. Rxh4 {[%clk 0:00:04.7]} 49... Kf6 {[%clk 0:00:35.3]} 50. Rh6
{[%clk 0:00:04.3]} 50... Kxe6 {[%clk 0:00:35.4]} 51. Ke1 {[%clk 0:00:04.8]}
51... Kf6 {[%clk 0:00:33.6]} 52. Rh8 {[%clk 0:00:03.3]} 52... g5 {[%clk
0:00:30]} 53. Kf1 {[%clk 0:00:03.5]} 53... Ra2 {[%clk 0:00:28.4]} 54. Kg1 {[%clk
0:00:03.9]} 54... Ke5 {[%clk 0:00:28.3]} 55. Rh6 {[%clk 0:00:03.9]} 55... Kf4
{[%clk 0:00:28.3]} 56. Rb6 {[%clk 0:00:03.8]} 56... Ra3 {[%clk 0:00:25.6]} 57.
Kg2 {[%clk 0:00:04]} 57... Ra2+ {[%clk 0:00:25.7]} 58. Kg1 {[%clk 0:00:04.3]}
58... Re2 {[%clk 0:00:22.3]} 59. Rb3 {[%clk 0:00:04]} 59... Re3 {[%clk
0:00:22.5]} 60. Rb4+ {[%clk 0:00:02.8]} 60... Kg3 {[%clk 0:00:22.3]} 61. Rb5
{[%clk 0:00:02.2]} 61... Re1# {[%clk 0:00:21.4]} 0-1

[Event "Early-Titled-Tuesday-Blitz-May-28-2024"]
[Site "Chess.com"]
[Date "2024.05.28"]
[Round "1"]
[White "baki83"]
[Black "zubridis"]
[Result "0-1"]
[WhiteElo "2909"]
[BlackElo "2530"]
[TimeControl "180+1"]
[EndTime "8:08:05 PDT"]
[Termination "zubridis won by checkmate"]

1. e4 {[%clk 0:02:17.7]} 1... c5 {[%clk 0:02:59.5]} 2. Nf3 {[%clk 0:02:17.4]}
2... d6 {[%clk 0:03:00]} 3. Bb5+ {[%clk 0:02:17.1]} 3... Nd7 {[%clk 0:02:59.5]}
4. O-O {[%clk 0:02:13.2]} 4... Nf6 {[%clk 0:02:57.6]} 5. Re1 {[%clk 0:02:12.8]}
5... a6 {[%clk 0:02:57.8]} 6. Bf1 {[%clk 0:02:12.9]} 6... b6 {[%clk 0:02:51.7]}
7. c4 {[%clk 0:02:10.1]} 7... Bb7 {[%clk 0:02:49.4]} 8. Nc3 {[%clk 0:02:10]}
8... Rc8 {[%clk 0:02:48.7]} 9. d4 {[%clk 0:02:09.7]} 9... cxd4 {[%clk
0:02:48.3]} 10. Qxd4 {[%clk 0:02:09.8]} 10... e6 {[%clk 0:02:37.5]} 11. b3
{[%clk 0:01:55.1]} 11... Qc7 {[%clk 0:02:33.5]} 12. Bb2 {[%clk 0:01:54.9]} 12...
Be7 {[%clk 0:02:30.1]} 13. Rad1 {[%clk 0:01:55]} 13... O-O {[%clk 0:02:27.4]}
14. h3 {[%clk 0:01:55.3]} 14... Rfd8 {[%clk 0:02:22.3]} 15. Qe3 {[%clk
0:01:54.2]} 15... Qb8 {[%clk 0:02:17.3]} 16. Nd4 {[%clk 0:01:50]} 16... Qa8
{[%clk 0:02:15.4]} 17. f3 {[%clk 0:01:49.8]} 17... Re8 {[%clk 0:02:07.4]} 18.
Qf2 {[%clk 0:01:45.5]} 18... Bd8 {[%clk 0:02:03.2]} 19. Nc2 {[%clk 0:01:39.4]}
19... Bc7 {[%clk 0:02:01.8]} 20. Ne3 {[%clk 0:01:40]} 20... Qb8 {[%clk
0:01:59.9]} 21. Qd2 {[%clk 0:01:25.7]} 21... Ne5 {[%clk 0:01:34.3]} 22. Re2
{[%clk 0:01:16.7]} 22... Rcd8 {[%clk 0:01:33.6]} 23. Qe1 {[%clk 0:01:15]} 23...
Ng6 {[%clk 0:01:21.6]} 24. Red2 {[%clk 0:01:11.8]} 24... Bc6 {[%clk 0:01:08.6]}
25. Ne2 {[%clk 0:01:02.2]} 25... b5 {[%clk 0:01:04.6]} 26. Nd4 {[%clk
0:00:50.9]} 26... Bd7 {[%clk 0:01:04.2]} 27. Kh1 {[%clk 0:00:49.9]} 27... bxc4
{[%clk 0:00:57.9]} 28. Bxc4 {[%clk 0:00:45.8]} 28... d5 {[%clk 0:00:57.2]} 29.
Bxa6 {[%clk 0:00:32.3]} 29... dxe4 {[%clk 0:00:52.8]} 30. Nc4 {[%clk 0:00:26.7]}
30... Bf4 {[%clk 0:00:38.5]} 31. Re2 {[%clk 0:00:17.3]} 31... Qa8 {[%clk
0:00:38.4]} 32. Qa5 {[%clk 0:00:12.6]} 32... exf3 {[%clk 0:00:23.5]} 33. Nxf3
{[%clk 0:00:13.5]} 33... Bc6 {[%clk 0:00:22.2]} 34. Rxd8 {[%clk 0:00:12.7]}
34... Rxd8 {[%clk 0:00:22.4]} 35. Nd4 {[%clk 0:00:12.9]} 35... e5 {[%clk
0:00:18]} 36. Nxc6 {[%clk 0:00:12.6]} 36... Rd1+ {[%clk 0:00:16.1]} 37. Re1
{[%clk 0:00:12.9]} 37... Rxe1+ {[%clk 0:00:14.3]} 38. Qxe1 {[%clk 0:00:13.8]}
38... Qxc6 {[%clk 0:00:13.6]} 39. Qa5 {[%clk 0:00:11.2]} 39... Qd7 {[%clk
0:00:07.7]} 40. Qb6 {[%clk 0:00:07.1]} 40... Ne4 {[%clk 0:00:06.6]} 41. Qb8+
{[%clk 0:00:03.1]} 41... Nf8 {[%clk 0:00:06.6]} 42. Ne3 {[%clk 0:00:02.9]} 42...
Bxe3 {[%clk 0:00:05.2]} 43. Ba3 {[%clk 0:00:03.4]} 43... Qd1+ {[%clk 0:00:04.9]}
44. Kh2 {[%clk 0:00:04]} 44... Bg1+ {[%clk 0:00:03.8]} 45. Kh1 {[%clk
0:00:03.7]} 45... Bf2+ {[%clk 0:00:03.9]} 46. Bf1 {[%clk 0:00:01.4]} 46... Qxf1+
{[%clk 0:00:03.1]} 47. Kh2 {[%clk 0:00:02.3]} 47... Bg3# {[%clk 0:00:03.2]} 0-1

[Event "Early-Titled-Tuesday-Blitz-May-28-2024"]
[Site "Chess.com"]
[Date "2024.05.28"]
[Round "1"]
[White "VD_coach"]
[Black "Chopper1905"]
[Result "0-1"]
[WhiteElo "2517"]
[BlackElo "2959"]
[TimeControl "180+1"]
[EndTime "8:08:07 PDT"]
[Termination "Chopper1905 won on time"]

1. Nf3 {[%clk 0:03:00.9]} 1... c5 {[%clk 0:02:58.9]} 2. e3 {[%clk 0:03:00.5]}
2... d5 {[%clk 0:02:53.8]} 3. d4 {[%clk 0:03:00.1]} 3... cxd4 {[%clk 0:02:54.4]}
4. exd4 {[%clk 0:02:59.2]} 4... Nc6 {[%clk 0:02:55]} 5. c3 {[%clk 0:02:58.6]}
5... Bg4 {[%clk 0:02:51.1]} 6. Be2 {[%clk 0:02:58.4]} 6... e6 {[%clk 0:02:51.3]}
7. O-O {[%clk 0:02:58.3]} 7... Bd6 {[%clk 0:02:51.9]} 8. Nbd2 {[%clk 0:02:56.2]}
8... Nge7 {[%clk 0:02:52.4]} 9. Re1 {[%clk 0:02:55.8]} 9... O-O {[%clk
0:02:51.3]} 10. Nf1 {[%clk 0:02:55.6]} 10... Rb8 {[%clk 0:02:42]} 11. a4 {[%clk
0:02:54.3]} 11... a6 {[%clk 0:02:42]} 12. Ng3 {[%clk 0:02:53.3]} 12... b5 {[%clk
0:02:40.7]} 13. axb5 {[%clk 0:02:54.2]} 13... axb5 {[%clk 0:02:41.5]} 14. b4
{[%clk 0:02:38.1]} 14... Nf5 {[%clk 0:02:39.8]} 15. Nxf5 {[%clk 0:02:34.1]}
15... Bxf5 {[%clk 0:02:39.8]} 16. Bd3 {[%clk 0:02:24.3]} 16... Bxd3 {[%clk
0:02:40]} 17. Qxd3 {[%clk 0:02:25.2]} 17... h6 {[%clk 0:02:40.6]} 18. Nd2 {[%clk
0:02:24.2]} 18... e5 {[%clk 0:02:32.8]} 19. dxe5 {[%clk 0:02:20]} 19... Nxe5
{[%clk 0:02:33.7]} 20. Qh3 {[%clk 0:01:48.3]} 20... Qc8 {[%clk 0:02:20.2]} 21.
Qxc8 {[%clk 0:01:25.2]} 21... Rbxc8 {[%clk 0:02:00]} 22. Re3 {[%clk 0:01:20.6]}
22... Ng4 {[%clk 0:01:45.4]} 23. Rd3 {[%clk 0:01:20.1]} 23... Bxh2+ {[%clk
0:01:43.8]} 24. Kf1 {[%clk 0:01:19.9]} 24... Be5 {[%clk 0:01:42.2]} 25. Rxd5
{[%clk 0:01:11.4]} 25... Bxc3 {[%clk 0:01:39.5]} 26. Rb1 {[%clk 0:01:11.4]}
26... Bxb4 {[%clk 0:01:33]} 27. Rxb5 {[%clk 0:00:58.3]} 27... Rxc1+ {[%clk
0:01:29.5]} 28. Rxc1 {[%clk 0:00:59.2]} 28... Bxd2 {[%clk 0:01:30.1]} 29. Rc4
{[%clk 0:00:59.4]} 29... Re8 {[%clk 0:01:23.8]} 30. g3 {[%clk 0:00:53.7]} 30...
Nf6 {[%clk 0:01:21.7]} 31. Rd4 {[%clk 0:00:49.2]} 31... Bc3 {[%clk 0:01:14.4]}
32. Rd3 {[%clk 0:00:45.4]} 32... Be5 {[%clk 0:01:14.2]} 33. Re3 {[%clk
0:00:43.3]} 33... Bd6 {[%clk 0:01:13.4]} 34. Rxe8+ {[%clk 0:00:42.5]} 34... Nxe8
{[%clk 0:01:14.3]} 35. Kg2 {[%clk 0:00:41.2]} 35... g6 {[%clk 0:01:12.5]} 36.
Rb7 {[%clk 0:00:40.5]} 36... Kg7 {[%clk 0:01:12.7]} 37. Rd7 {[%clk 0:00:40.4]}
37... Ba3 {[%clk 0:01:10.1]} 38. Ra7 {[%clk 0:00:40.2]} 38... Bb2 {[%clk
0:01:08.7]} 39. Ra2 {[%clk 0:00:40.1]} 39... Bf6 {[%clk 0:01:07.9]} 40. Rc2
{[%clk 0:00:40.1]} 40... h5 {[%clk 0:01:07.5]} 41. Re2 {[%clk 0:00:40.1]} 41...
Nd6 {[%clk 0:01:07.8]} 42. Rd2 {[%clk 0:00:40]} 42... Nf5 {[%clk 0:01:07.9]} 43.
Rd5 {[%clk 0:00:38.9]} 43... Nd4 {[%clk 0:01:06]} 44. Ra5 {[%clk 0:00:36.5]}
44... Ne6 {[%clk 0:01:06.2]} 45. Ra7 {[%clk 0:00:36.1]} 45... Bd4 {[%clk
0:01:06.5]} 46. Rb7 {[%clk 0:00:35.9]} 46... g5 {[%clk 0:01:05.4]} 47. Rb4
{[%clk 0:00:34.7]} 47... Kg6 {[%clk 0:01:04]} 48. Rc4 {[%clk 0:00:34.7]} 48...
Be5 {[%clk 0:00:59.7]} 49. Re4 {[%clk 0:00:33.8]} 49... f6 {[%clk 0:00:59.4]}
50. Ra4 {[%clk 0:00:33.9]} 50... g4 {[%clk 0:00:56.9]} 51. f3 {[%clk 0:00:33.7]}
51... gxf3+ {[%clk 0:00:54.6]} 52. Kxf3 {[%clk 0:00:33.6]} 52... Nd4+ {[%clk
0:00:55]} 53. Kg2 {[%clk 0:00:31.1]} 53... Nf5 {[%clk 0:00:54.9]} 54. g4 {[%clk
0:00:09.9]} 54... Ne3+ {[%clk 0:00:55.1]} 55. Kh3 {[%clk 0:00:09.8]} 55... Nxg4
{[%clk 0:00:55.7]} 56. Kh4 {[%clk 0:00:09.5]} 56... Ne3 {[%clk 0:00:53.5]} 57.
Ra8 {[%clk 0:00:09.1]} 57... Nf5+ {[%clk 0:00:52]} 58. Kh3 {[%clk 0:00:09.1]}
58... Nh6 {[%clk 0:00:48.2]} 59. Ra4 {[%clk 0:00:07.2]} 59... Kg5 {[%clk
0:00:46]} 60. Rc4 {[%clk 0:00:07]} 60... Ng4 {[%clk 0:00:45.8]} 61. Rc8 {[%clk
0:00:07.2]} 61... Nf2+ {[%clk 0:00:45.3]} 62. Kg2 {[%clk 0:00:07.6]} 62... Nd3
{[%clk 0:00:45.6]} 63. Kh3 {[%clk 0:00:08.4]} 63... Nf4+ {[%clk 0:00:45.6]} 64.
Kg3 {[%clk 0:00:07.7]} 64... h4+ {[%clk 0:00:45.1]} 65. Kh2 {[%clk 0:00:07.7]}
65... Kg4 {[%clk 0:00:40.7]} 66. Rg8+ {[%clk 0:00:07.1]} 66... Kf3 {[%clk
0:00:41.2]} 67. Kh1 {[%clk 0:00:05.9]} 67... Ne2 {[%clk 0:00:38.9]} 68. Rg3+
{[%clk 0:00:03.5]} 68... Nxg3+ {[%clk 0:00:38.9]} 0-1